bitfinex/quotes_SOLUSD_20251202
["timestamp","ask_amount","ask_price","bid_price","bid_amount"]
[1764705192882,61.4,140.23,140.21,9.00994492]
[1764705193087,7.88,140.22,140.21,9.72994492]
[1764705193585,7.88,140.22,140.21,16.86210382]
[1764705195967,7.88,140.22,140.21,9.72994492]
[1764705196375,7.88,140.22,140.21,0.2]
[1764705197386,8.57,140.22,140.21,0.2]
[1764705198469,20.51031123,140.22,140.21,0.2]
[1764705198883,15.70165026,140.22,140.21,0.2]
[1764705199293,77.10165026,140.22,140.21,0.2]
[1764705200293,81.91031123,140.22,140.21,0.2]
[1764705200591,80.18134909,140.22,140.21,0.2]
[1764705200889,18.78134909,140.22,140.21,0.2]
[1764705204013,15.70165026,140.22,140.21,0.2]
[1764705204301,18.78134909,140.22,140.21,0.2]
[1764705205214,15.70165026,140.22,140.21,0.2]
[1764705205498,18.78134909,140.22,140.21,0.2]
[1764705212096,15.70165026,140.22,140.21,0.2]
[1764705212297,18.78134909,140.22,140.21,0.2]
[1764705212606,15.01165026,140.22,140.21,0.2]
[1764705212813,7.88,140.22,140.21,9.00994492]
[1764705213105,7.88,140.22,140.19,8.80994492]
[1764705213689,3.07969883,140.2,140.18,0.2]
[1764705214008,7.88,140.19,140.18,9.00994492]
[1764705214218,15.0131764,140.19,140.18,9.00994492]
[1764705214507,15.0131764,140.19,140.18,0.2]
[1764705215911,7.1331764,140.19,140.18,0.2]
[1764705216108,15.0131764,140.19,140.18,0.9]
[1764705216715,15.0131764,140.19,140.18,0.2]
[1764705217514,15.7231764,140.19,140.18,0.2]
[1764705217715,15.0131764,140.19,140.18,0.2]
[1764705218595,15.7231764,140.19,140.18,0.2]
[1764705218795,18.80287523,140.19,140.18,0.2]
[1764705222232,15.7231764,140.19,140.18,0.2]
[1764705222395,18.80287523,140.19,140.18,0.2]
[1764705226423,15.7231764,140.19,140.18,0.2]
[1764705226625,18.80287523,140.19,140.18,0.2]
[1764705240740,15.7231764,140.19,140.18,0.2]
[1764705241038,18.80287523,140.19,140.18,0.2]
[1764705246359,15.7231764,140.19,140.18,0.2]
[1764705246530,18.80287523,140.19,140.18,0.2]
[1764705247530,15.7231764,140.19,140.18,0.2]
[1764705247715,18.80287523,140.19,140.18,0.2]
[1764705250658,7.1331764,140.19,140.18,9.71994492]
[1764705250836,18.09287523,140.19,140.18,9.71994492]
[1764705251022,18.09287523,140.19,140.18,9.00994492]
[1764705251350,18.09287523,140.19,140.18,9.71994492]
[1764705252253,18.09287523,140.19,140.18,9.00994492]
[1764705254031,15.0131764,140.19,140.18,0.2]
[1764705254232,18.78287523,140.19,140.18,0.2]
[1764705254451,18.09287523,140.19,140.18,0.2]
[1764705256773,18.78287523,140.19,140.18,0.2]
[1764705259052,10.90287523,140.19,140.18,0.2]
[1764705259257,18.78287523,140.19,140.18,0.2]
[1764705260368,20.51922534,140.19,140.18,0.2]
[1764705261061,36.82808934,140.19,140.18,1e-08]
[1764705261357,45.63803426,140.19,140.18,1e-08]
[1764705266560,99.13685727,140.19,140.15,0.2]
[1764705266863,4.81604894,140.16,140.15,0.2]
[1764705267055,12.69604894,140.16,140.15,0.2]
[1764705267256,13.38604894,140.16,140.15,0.2]
[1764705268367,18.20209788,140.16,140.15,0.2]
[1764705268666,25.33680107,140.16,140.15,0.2]
[1764705270164,15.70470319,140.16,140.15,0.2]
[1764705270334,20.52075213,140.16,140.15,0.2]
[1764705275277,12.64075213,140.16,140.15,0.2]
[1764705275472,20.52075213,140.16,140.15,0.2]
[1764705284983,19.83075213,140.16,140.15,0.88]
[1764705285196,19.83075213,140.16,140.15,0.2]
[1764705287277,15.01470319,140.16,140.15,0.2]
[1764705287474,19.83075213,140.16,140.15,0.2]
[1764705290900,7.88,140.2,140.17,8.80994492]
[1764705291191,7.88,140.2,140.19,8.80994492]
[1764705291491,4.81604894,140.24,140.19,8.80994492]
[1764705291795,7.88,140.23,140.2,0.68]
[1764705292784,7.88,140.23,140.2,5.49604894]
[1764705293168,25.0,140.29,140.22,8.80994492]
[1764705293370,4.81604894,140.25,140.22,8.80994492]
[1764705293610,4.81604894,140.28,140.23,5.49604894]
[1764705293899,7.88,140.27,140.23,5.49604894]
[1764705294090,7.88,140.27,140.24,0.68]
[1764705294878,7.88,140.27,140.24,9.48994492]
[1764705295176,15.00917634,140.27,140.24,9.48994492]
[1764705295392,15.00917634,140.27,140.26,8.80994492]
[1764705295697,19.82522528,140.27,140.26,8.80994492]
[1764705295902,19.82522528,140.27,140.26,0.68]
[1764705296401,15.00917634,140.27,140.26,0.68]
[1764705298586,7.88,140.27,140.26,0.68]
[1764705301579,73.34326139,140.31,140.27,8.80994492]
[1764705301900,0.1,140.33,140.28,4.81604894]
[1764705301901,7.88,140.3,140.28,4.81604894]
[1764705302095,7.88,140.3,140.28,5.49604894]
[1764705302292,7.88,140.3,140.29,0.68]
[1764705303810,0.1,140.33,140.3,8.80994492]
[1764705304024,7.88,140.32,140.3,13.62599386]
[1764705304199,7.88,140.32,140.31,9.48994492]
[1764705304688,7.88,140.32,140.31,14.30599386]
[1764705305008,0.1,140.33,140.32,8.80994492]
[1764705305210,7.98,140.33,140.32,14.30599386]
[1764705305577,7.98,140.33,140.32,9.48994492]
[1764705306184,7.98,140.33,140.32,14.30599386]
[1764705306382,7.98,140.33,140.32,21.4325617]
[1764705308612,7.98,140.33,140.32,14.30599386]
[1764705309303,7.98,140.33,140.32,21.4325617]
[1764705310011,7.98,140.33,140.32,9.48994492]
[1764705310684,7.98,140.33,140.3,16.308864]
[1764705310685,7.98,140.33,140.3,0.68]
[1764705310887,13.50604894,140.33,140.3,0.68]
[1764705311114,13.50604894,140.33,140.29,25.11880892]
[1764705311281,13.50604894,140.33,140.29,25.79880892]
[1764705311708,13.50604894,140.33,140.29,9.48994492]
[1764705311913,0.69,140.32,140.29,8.80994492]
[1764705312084,20.61246171,140.33,140.29,9.50994492]
[1764705312491,0.69,140.32,140.29,9.50994492]
[1764705312983,5.50604894,140.32,140.28,8.80994492]
[1764705313297,5.50604894,140.32,140.28,25.81880892]
[1764705313503,5.50604894,140.31,140.28,25.11880892]
[1764705313704,7.86,140.3,140.28,25.11880892]
[1764705313897,7.86,140.3,140.28,25.81880892]
[1764705314295,7.86,140.3,140.28,32.94729274]
[1764705314701,0.1,140.33,140.29,5.51604894]
[1764705315018,0.1,140.33,140.32,8.80994492]
[1764705315203,7.96,140.33,140.32,8.80994492]
[1764705315999,8.65,140.33,140.31,8.80994492]
[1764705316316,0.69,140.32,140.29,13.62599386]
[1764705316616,0.1,140.36,140.33,8.80994492]
[1764705316785,0.1,140.36,140.35,29.93485786]
[1764705317215,0.1,140.36,140.35,30.51485786]
[1764705318013,0.1,140.36,140.35,37.63990239]
[1764705318703,0.1,140.36,140.35,25.11880892]
[1764705318908,0.1,140.36,140.35,8.80994492]
[1764705319103,0.79,140.36,140.35,8.80994492]
[1764705319434,0.1,140.36,140.35,8.80994492]
[1764705323014,0.1,140.36,140.35,15.93498945]
[1764705323213,0.1,140.36,140.35,19.00756954]
[1764705323433,7.96,140.36,140.35,19.00756954]
[1764705323607,7.96,140.36,140.35,15.93498945]
[1764705325738,7.96,140.36,140.35,19.00756954]
[1764705326411,0.1,140.36,140.35,35.89643354]
[1764705326724,7.96,140.36,140.35,35.89643354]
[1764705326915,7.96,140.36,140.35,35.31643354]
[1764705327633,8.65,140.36,140.35,25.11880892]
[1764705328339,18.84711699,140.36,140.31,3.07258009]
[1764705328645,3.07258009,140.34,140.29,10.20067189]
[1764705328936,10.93258009,140.33,140.29,16.308864]
[1764705329133,10.93258009,140.33,140.3,8.80994492]
[1764705329314,0.69,140.32,140.3,8.80994492]
[1764705329511,0.69,140.32,140.28,10.20107028]
[1764705329739,7.81681076,140.32,140.28,10.20107028]
[1764705329910,3.07258009,140.31,140.29,16.308864]
[1764705330112,3.76258009,140.31,140.3,8.80994492]
[1764705330313,10.93258009,140.31,140.28,8.80994492]
[1764705330951,17.81438088,140.34,140.29,3.07258009]
[1764705330952,0.69,140.33,140.29,3.07258009]
[1764705331110,8.55,140.32,140.29,11.88252501]
[1764705331311,7.86,140.31,140.3,8.80994492]
[1764705331617,7.86,140.31,140.29,3.07258009]
[1764705332119,7.86,140.31,140.3,7.12758374]
[1764705332622,8.55,140.31,140.28,8.80994492]
[1764705332836,0.69,140.3,140.27,8.80994492]
[1764705333313,3.76258009,140.3,140.25,3.07258009]
[1764705333515,3.76258009,140.3,140.28,8.80994492]
[1764705333731,0.69,140.29,140.28,8.80994492]
[1764705335522,3.74258009,140.3,140.28,8.80994492]
[1764705336136,0.67,140.29,140.28,8.80994492]
[1764705339625,0.67,140.29,140.27,16.308864]
[1764705339835,7.86,140.28,140.27,25.11880892]
[1764705341452,72.26983654,140.31,140.28,8.80994492]
[1764705341657,7.86,140.3,140.28,8.80994492]
[1764705341839,7.86,140.29,140.28,8.80994492]
[1764705342658,8.55,140.29,140.28,8.80994492]
[1764705342855,36.57090141,140.29,140.23,7.13107835]
[1764705343156,3.76258009,140.28,140.24,8.80994492]
[1764705343360,0.69,140.28,140.24,28.19138901]
[1764705343535,0.69,140.28,140.24,28.77138901]
[1764705344662,7.86,140.27,140.26,8.80994492]
[1764705345940,8.55,140.27,140.26,8.80994492]
[1764705346249,0.69,140.27,140.26,8.80994492]
[1764705346433,8.55,140.27,140.26,8.80994492]
[1764705348541,69.95,140.27,140.25,8.80994492]
[1764705349658,69.95,140.27,140.25,15.93986237]
[1764705349864,69.26,140.27,140.25,16.51986237]
[1764705350364,69.26,140.27,140.25,15.93986237]
[1764705350660,7.86,140.26,140.25,15.93986237]
[1764705351260,61.4,140.27,140.25,15.93986237]
[1764705351437,7.86,140.26,140.25,15.93986237]
[1764705352264,61.4,140.27,140.25,16.51986237]
[1764705352492,7.86,140.26,140.25,15.93986237]
[1764705352852,7.86,140.26,140.25,19.01244246]
[1764705353050,7.86,140.26,140.25,15.93986237]
[1764705357181,61.4,140.29,140.25,37.4177544]
[1764705357484,7.86,140.28,140.26,3.65258009]
[1764705357847,7.86,140.28,140.26,8.80994492]
[1764705357848,0.69,140.27,140.26,8.80994492]
[1764705360284,8.55,140.28,140.27,8.80994492]
[1764705361058,15.67859994,140.28,140.25,8.80994492]
[1764705361261,0.69,140.27,140.25,8.80994492]
[1764705362673,7.81912148,140.27,140.25,8.80994492]
[1764705363084,0.69,140.26,140.25,8.80994492]
[1764705363894,8.55,140.26,140.25,8.80994492]
[1764705365958,48.98875348,140.2,140.19,19.96144409]
[1764705366165,7.86,140.23,140.19,23.03402418]
[1764705366373,7.86,140.23,140.22,3.07258009]
[1764705367389,7.86,140.23,140.22,10.20423035]
[1764705367782,7.86,140.23,140.22,28.033356]
[1764705367984,7.86,140.23,140.22,36.84330092]
[1764705368792,7.86,140.23,140.22,33.77072083]
[1764705368991,7.86,140.23,140.22,36.84330092]
[1764705369372,7.86,140.23,140.22,33.77072083]
[1764705372996,7.86,140.23,140.22,36.84330092]
[1764705373519,7.86,140.23,140.22,33.77072083]
[1764705374688,7.86,140.23,140.22,36.84330092]
[1764705375879,0.66,140.28,140.25,25.11880892]
[1764705376081,7.86,140.27,140.25,25.11880892]
[1764705376383,0.66,140.28,140.26,8.80994492]
[1764705376585,7.86,140.27,140.26,8.80994492]
[1764705376796,7.86,140.27,140.26,15.93956134]
[1764705380789,7.86,140.27,140.26,14.89656134]
[1764705383701,8.52,140.27,140.26,14.89656134]
[1764705385287,0.66,140.32,140.31,8.80994492]
[1764705385510,8.52,140.32,140.31,8.80994492]
[1764705386410,8.52,140.32,140.3,16.308864]
[1764705386606,0.66,140.31,140.3,25.11880892]
[1764705386988,5.46645631,140.31,140.25,17.82459093]
[1764705387196,4.80645631,140.3,140.28,16.308864]
[1764705387396,7.86,140.29,140.28,25.11880892]
[1764705387598,8.52,140.29,140.28,25.11880892]
[1764705388690,8.52,140.29,140.28,16.308864]
[1764705395930,8.52,140.29,140.25,7.12975553]
[1764705396239,66.20645631,140.28,140.24,8.80994492]
[1764705396403,4.80645631,140.27,140.24,8.80994492]
[1764705396607,7.86,140.26,140.23,8.80994492]
[1764705397930,7.86,140.26,140.23,7.1308339]
[1764705399609,0.7,140.25,140.23,7.1308339]
[1764705403640,0.7,140.25,140.21,16.308864]
[1764705403641,4.80645631,140.24,140.21,16.308864]
[1764705403848,7.86,140.23,140.21,16.308864]
[1764705404021,13.34645631,140.23,140.21,16.308864]
[1764705404338,0.68,140.22,140.21,25.11880892]
[1764705406653,0.68,140.22,140.2,7.1322578]
[1764705406654,12.61810657,140.22,140.18,10.85551233]
[1764705406819,5.48645631,140.22,140.19,8.80994492]
[1764705407022,0.68,140.21,140.19,15.94310119]
[1764705407324,7.86,140.2,140.19,15.94310119]
[1764705415047,8.54,140.2,140.19,8.80994492]
[1764705415425,8.54,140.2,140.19,15.94312132]
[1764705415833,8.54,140.2,140.19,8.80994492]
[1764705419754,15.67266761,140.2,140.18,16.308864]
[1764705419926,0.68,140.19,140.18,16.308864]
[1764705420946,7.86,140.2,140.18,16.308864]
[1764705421268,0.68,140.21,140.19,8.80994492]
[1764705421431,7.86,140.2,140.19,8.80994492]
[1764705422136,61.4,140.23,140.19,8.80994492]
[1764705422354,8.54,140.22,140.19,8.80994492]
[1764705422725,0.68,140.21,140.19,8.80994492]
[1764705423254,0.68,140.21,140.19,15.9429018]
[1764705430269,0.68,140.21,140.18,7.13343228]
[1764705436097,7.81241716,140.21,140.17,8.80994492]
[1764705436592,0.68,140.2,140.17,8.80994492]
[1764705436761,7.86,140.19,140.17,8.80994492]
[1764705437469,8.54,140.19,140.17,8.80994492]
[1764705438358,7.86,140.19,140.17,15.94407051]
[1764705438557,7.86,140.19,140.17,8.80994492]
[1764705438878,8.54,140.19,140.17,8.80994492]
[1764705440185,0.68,140.18,140.17,8.80994492]
[1764705442621,8.54,140.19,140.17,11.89019356]
[1764705442792,0.68,140.24,140.21,8.80994492]
[1764705442992,7.86,140.23,140.21,8.80994492]
[1764705443164,8.54,140.23,140.21,8.80994492]
[1764705443489,0.68,140.22,140.21,8.80994492]
[1764705449400,0.68,140.22,140.2,16.308864]
[1764705450794,0.68,140.23,140.21,11.89019356]
[1764705450985,8.54,140.22,140.21,8.80994492]
[1764705451672,8.54,140.22,140.21,15.94210382]
[1764705453601,7.86,140.22,140.21,19.02235246]
[1764705453781,62.05,140.27,140.25,8.80994492]
[1764705453989,7.86,140.26,140.25,8.80994492]
[1764705454199,8.51,140.26,140.25,8.80994492]
[1764705459310,8.51,140.26,140.25,11.89019356]
[1764705459989,8.51,140.26,140.25,8.80994492]
[1764705461579,8.51,140.26,140.23,11.89019356]
[1764705461784,0.66,140.25,140.23,11.89019356]
[1764705462114,0.66,140.25,140.23,15.94104015]
[1764705462306,0.66,140.25,140.23,19.02128879]
[1764705463183,0.66,140.25,140.23,8.80994492]
[1764705463477,0.66,140.25,140.24,11.89019356]
[1764705465611,0.66,140.25,140.24,8.80994492]
[1764705468188,0.66,140.25,140.24,15.94057812]
[1764705468392,61.4,140.27,140.25,8.80994492]
[1764705468393,62.06,140.27,140.25,8.80994492]
[1764705468592,7.86,140.26,140.25,8.80994492]
[1764705469105,8.52,140.26,140.25,8.80994492]
[1764705469516,8.52,140.26,140.25,7.13012477]
[1764705469730,8.52,140.26,140.23,24.48054111]
[1764705469905,0.66,140.25,140.24,8.80994492]
[1764705471233,0.66,140.25,140.24,11.89019356]
[1764705471616,8.52,140.26,140.24,15.94048163]
[1764705472132,7.86,140.25,140.24,19.02073027]
[1764705472516,8.52,140.25,140.24,15.94048163]
[1764705472911,7.86,140.25,140.24,19.02073027]
[1764705473127,8.52,140.25,140.24,19.02073027]
[1764705473432,7.86,140.25,140.24,19.02073027]
[1764705475011,62.06,140.29,140.27,16.308864]
[1764705475212,8.52,140.28,140.27,25.11880892]
[1764705476122,8.52,140.28,140.27,32.24791706]
[1764705476320,69.1130995,140.28,140.24,17.41073027]
[1764705476631,19.38911264,140.25,140.18,0.72]
[1764705476833,7.86,140.24,140.19,0.72]
[1764705477007,7.86,140.24,140.15,0.2]
[1764705477008,3.08024864,140.24,140.16,0.72]
[1764705477213,11.51024864,140.23,140.17,11.89019356]
[1764705477434,7.86,140.22,140.17,11.89019356]
[1764705477645,7.86,140.22,140.19,8.80994492]
[1764705477812,8.43,140.22,140.19,8.80994492]
[1764705478013,8.43,140.22,140.19,7.85307617]
[1764705478213,17.82495802,140.26,140.19,7.85307617]
[1764705478428,3.65024864,140.24,140.21,8.80994492]
[1764705479325,10.78097297,140.24,140.21,8.80994492]
[1764705480238,10.78096912,140.24,140.21,8.80994492]
[1764705480617,10.78096912,140.24,140.19,0.72]
[1764705480618,3.65024864,140.23,140.19,0.72]
[1764705480817,7.86,140.22,140.19,0.72]
[1764705481119,0.57,140.26,140.21,8.80994492]
[1764705481323,7.86,140.25,140.23,8.80994492]
[1764705481625,7.86,140.24,140.23,8.80994492]
[1764705481819,7.86,140.24,140.23,9.52994492]
[1764705482613,0.57,140.31,140.27,8.80994492]
[1764705482812,7.86,140.3,140.27,8.80994492]
[1764705483222,0.57,140.29,140.26,8.80994492]
[1764705483421,0.57,140.29,140.26,25.11880892]
[1764705483622,7.69811261,140.29,140.26,25.11880892]
[1764705484521,0.57,140.29,140.26,25.83880892]
[1764705484721,7.69814413,140.29,140.26,16.308864]
[1764705484931,0.57,140.29,140.26,17.028864]
[1764705485324,14.98761121,140.3,140.27,0.72]
[1764705485526,15.55761121,140.3,140.26,26.51872056]
[1764705485727,0.57,140.29,140.26,20.10911264]
[1764705485932,15.55761121,140.3,140.26,17.028864]
[1764705487746,0.57,140.29,140.26,17.028864]
[1764705489118,14.98761121,140.3,140.27,0.72]
[1764705489322,15.55761121,140.3,140.27,0.72]
[1764705489617,15.55759408,140.3,140.27,0.72]
[1764705489937,15.55759408,140.3,140.26,26.51864086]
[1764705490131,15.55759408,140.3,140.26,27.23864086]
[1764705490553,15.55759408,140.3,140.27,0.72]
[1764705492747,7.86,140.3,140.27,10.92924586]
[1764705493130,7.86,140.3,140.28,0.67]
[1764705493344,69.26,140.3,140.28,0.67]
[1764705493937,69.26,140.3,140.27,10.20924586]
[1764705494241,69.26,140.3,140.28,0.67]
[1764705496143,61.4,140.3,140.28,0.67]
[1764705496346,7.86,140.29,140.28,0.67]
[1764705496541,7.86,140.29,140.27,10.87924586]
[1764705496848,7.86,140.29,140.27,0.67]
[1764705499256,8.43,140.29,140.27,8.80994492]
[1764705499655,7.86,140.29,140.27,8.80994492]
[1764705502765,7.86,140.29,140.27,9.47994492]
[1764705503058,7.86,140.29,140.28,0.67]
[1764705503258,7.86,140.29,140.28,12.56019356]
[1764705504352,7.86,140.29,140.28,21.41294657]
[1764705512370,68.52664366,140.32,140.29,8.80994492]
[1764705512684,7.86,140.31,140.29,9.47994492]
[1764705512837,61.4,140.32,140.3,5.47440171]
[1764705513042,61.4,140.34,140.31,4.80440171]
[1764705513243,7.86,140.33,140.32,13.61434663]
[1764705513461,7.86,140.33,140.32,14.28434663]
[1764705514563,7.86,140.33,140.32,16.60651276]
[1764705514878,7.86,140.33,140.32,21.41091447]
[1764705515077,7.86,140.33,140.32,14.28434663]
[1764705515750,7.86,140.33,140.32,21.41091447]
[1764705515957,7.86,140.33,140.32,16.60651276]
[1764705516680,7.86,140.33,140.32,21.40091447]
[1764705517083,7.86,140.33,140.32,16.59651276]
[1764705517387,7.86,140.33,140.32,21.40091447]
[1764705517580,7.86,140.33,140.32,9.46994492]
[1764705517758,7.86,140.33,140.32,8.80994492]
[1764705519267,7.86,140.33,140.24,12.66440171]
[1764705519268,12.50046171,140.33,140.28,5.46440171]
[1764705519470,4.80440171,140.32,140.28,8.80994492]
[1764705519680,20.36046171,140.33,140.29,9.46994492]
[1764705519983,0.57,140.32,140.29,9.46994492]
[1764705521082,7.69659169,140.32,140.29,9.46994492]
[1764705521796,7.12659169,140.32,140.29,16.59803621]
[1764705522490,7.69659169,140.32,140.29,16.59803621]
[1764705522883,7.12659169,140.32,140.29,9.46994492]
[1764705523388,7.69659169,140.32,140.29,9.46994492]
[1764705525601,7.12659169,140.32,140.29,9.46994492]
[1764705528899,68.52659169,140.32,140.29,9.46994492]
[1764705529517,21.21326571,140.36,140.31,8.80994492]
[1764705529675,7.86,140.35,140.31,8.80994492]
[1764705529874,7.86,140.35,140.32,0.7]
[1764705530073,8.43,140.35,140.31,9.50994492]
[1764705530701,15.55522281,140.35,140.31,9.50994492]
[1764705530882,15.55522281,140.35,140.31,8.80994492]
[1764705531200,15.55522281,140.35,140.31,16.63698916]
[1764705533108,15.55522281,140.35,140.32,0.7]
[1764705533404,15.55522281,140.35,140.31,16.63698916]
[1764705534184,7.69522281,140.35,140.31,16.63698916]
[1764705534382,7.86,140.34,140.31,15.93698916]
[1764705534586,7.86,140.34,140.32,0.7]
[1764705534899,69.26,140.34,140.32,0.7]
[1764705536079,69.26,140.34,140.31,16.63698916]
[1764705536701,69.26,140.34,140.31,15.93698916]
[1764705536904,69.26,140.34,140.32,0.7]
[1764705537275,81.76009119,140.34,140.31,8.80994492]
[1764705537479,76.38568948,140.34,140.31,9.50994492]
[1764705537890,76.38568948,140.34,140.32,0.7]
[1764705538878,76.38568948,140.34,140.31,16.63701515]
[1764705541282,69.26,140.34,140.31,16.63701515]
[1764705541502,76.38558009,140.34,140.31,16.63701515]
[1764705542188,7.86,140.33,140.31,16.63701515]
[1764705542493,7.86,140.33,140.31,9.50994492]
[1764705543105,7.86,140.33,140.31,8.80994492]
[1764705545016,7.86,140.33,140.32,0.7]
[1764705545388,7.86,140.33,140.31,9.50994492]
[1764705547288,12.66440171,140.33,140.31,9.50994492]
[1764705547512,7.86,140.33,140.31,9.50994492]
[1764705547812,61.4,140.34,140.33,8.80994492]
[1764705548116,7.86,140.34,140.33,9.50994492]
[1764705550517,7.86,140.34,140.33,16.63600492]
[1764705552992,20.35995394,140.34,140.29,8.80994492]
[1764705553211,4.80440171,140.32,140.3,8.80994492]
[1764705553514,7.86,140.31,140.3,8.80994492]
[1764705553902,7.86,140.31,140.27,21.11326571]
[1764705553903,7.86,140.31,140.28,8.80994492]
[1764705554206,7.86,140.31,140.3,0.68]
[1764705554502,7.86,140.31,140.3,8.80994492]
[1764705554802,7.86,140.31,140.3,15.93752866]
[1764705556618,7.86,140.31,140.3,8.80994492]
[1764705557323,7.86,140.31,140.3,9.48994492]
[1764705559120,7.86,140.31,140.3,8.80994492]
[1764705559820,7.86,140.31,140.3,9.48994492]
[1764705560724,7.86,140.31,140.3,8.80994492]
[1764705561328,13.23440171,140.31,140.27,8.80994492]
[1764705561527,4.80440171,140.29,140.27,8.80994492]
[1764705561737,7.86,140.28,140.27,25.11880892]
[1764705564242,13.23440171,140.28,140.24,0.68]
[1764705564430,13.23440171,140.28,140.25,8.80994492]
[1764705564731,5.37440171,140.27,140.24,0.68]
[1764705564902,12.50366497,140.27,140.24,16.988864]
[1764705565232,4.80440171,140.27,140.24,16.988864]
[1764705565440,12.66440171,140.28,140.25,0.68]
[1764705565596,13.23440171,140.28,140.25,0.68]
[1764705566508,11.50693028,140.28,140.25,0.68]
[1764705566835,18.63568943,140.28,140.25,0.68]
[1764705567032,3.07693028,140.26,140.23,9.48994492]
[1764705567235,3.07693028,140.26,140.25,0.68]
[1764705567440,7.86,140.25,140.24,0.68]
[1764705568103,7.86,140.25,140.24,9.48994492]
[1764705568534,7.86,140.25,140.24,16.62057812]
[1764705571846,7.86,140.25,140.24,19.6975084]
[1764705572617,7.86,140.25,140.24,16.62057812]
[1764705574546,7.86,140.25,140.24,19.6975084]
[1764705574945,7.86,140.25,140.24,16.62057812]
[1764705575129,7.86,140.25,140.24,19.6975084]
[1764705579948,7.86,140.26,140.25,8.80994492]
[1764705580124,7.86,140.26,140.25,12.5968752]
[1764705580319,7.86,140.26,140.25,11.8868752]
[1764705581024,7.86,140.26,140.25,12.5968752]
[1764705581672,7.86,140.26,140.25,19.72699997]
[1764705589273,61.4,140.29,140.25,19.72699997]
[1764705589481,7.86,140.27,140.26,12.5968752]
[1764705591286,7.86,140.27,140.26,19.72649162]
[1764705592278,7.12675775,140.32,140.3,8.80994492]
[1764705592279,61.4,140.32,140.3,8.80994492]
[1764705592585,7.86,140.31,140.3,11.8868752]
[1764705593281,7.7946945,140.36,140.32,8.80994492]
[1764705593585,7.86,140.35,140.33,3.07693028]
[1764705593754,8.43,140.35,140.33,3.07693028]
[1764705594163,8.43,140.35,140.32,11.8868752]
[1764705594878,8.43,140.35,140.33,0.79]
[1764705595583,0.57,140.34,140.33,0.79]
[1764705596274,3.64693028,140.34,140.3,8.80994492]
[1764705596676,0.57,140.33,140.3,11.8868752]
[1764705596882,7.86,140.32,140.3,12.5968752]
[1764705598685,7.86,140.32,140.3,19.01444826]
[1764705598870,7.86,140.32,140.31,0.71]
[1764705600194,7.86,140.32,140.3,8.80994492]
[1764705600375,7.86,140.32,140.31,3.78693028]
[1764705600696,61.4,140.34,140.31,3.78693028]
[1764705600991,0.1,140.36,140.33,19.38579428]
[1764705601198,7.86,140.35,140.34,11.8868752]
[1764705601361,7.86,140.35,140.34,9.51994492]
[1764705601566,7.86,140.35,140.34,12.5968752]
[1764705602277,0.1,140.36,140.35,15.93498945]
[1764705602474,0.1,140.36,140.35,19.72191973]
[1764705604191,0.1,140.36,140.35,16.64498945]
[1764705604490,0.1,140.36,140.35,20.51191973]
[1764705604666,0.1,140.38,140.37,25.11880892]
[1764705604866,0.1,140.38,140.37,28.1957392]
[1764705605196,0.1,140.38,140.37,36.8657392]
[1764705605604,0.1,140.4,140.39,25.11880892]
[1764705605771,0.1,140.4,140.39,28.1957392]
[1764705606092,0.1,140.4,140.39,28.9057392]
[1764705606296,0.1,140.4,140.39,36.02875365]
[1764705607193,0.1,140.4,140.39,32.95182337]
[1764705607383,0.1,140.4,140.39,36.02875365]
[1764705608293,0.1,140.4,140.39,28.1957392]
[1764705608494,0.1,140.4,140.35,0.79]
[1764705608701,10.93693028,140.39,140.36,7.96]
[1764705608900,3.07693028,140.37,140.33,3.07693028]